bitfinex/quotes_BTCUSD_20221001
["timestamp","ask_amount","ask_price","bid_price","bid_amount"]
[1664645525163,1.57024344,19289.0,19288.0,0.02456673]
[1664645525614,1.57024344,19289.0,19288.0,0.07956673]
[1664645525834,1.21217744,19289.0,19288.0,0.07956673]
[1664645526061,1.57024344,19289.0,19288.0,0.07956673]
[1664645526275,1.21217744,19289.0,19288.0,0.07956673]
[1664645526777,1.21217744,19289.0,19288.0,0.02456673]
[1664645527471,1.57024344,19289.0,19288.0,0.07456673]
[1664645527923,1.21217744,19289.0,19288.0,0.07456673]
[1664645528803,1.21217744,19289.0,19288.0,0.02456673]
[1664645529507,1.21217744,19289.0,19288.0,0.07456673]
[1664645530883,1.21217744,19289.0,19288.0,0.02456673]
[1664645531552,1.21217744,19289.0,19288.0,0.07456673]
[1664645532860,1.21217744,19289.0,19288.0,0.02456673]
[1664645533589,1.21217744,19289.0,19288.0,0.07456673]
[1664645534717,1.21217744,19289.0,19288.0,0.02456673]
[1664645535640,1.21217744,19289.0,19288.0,0.07456673]
[1664645536749,1.21217744,19289.0,19288.0,0.02456673]
[1664645537748,1.21217744,19289.0,19288.0,0.07456673]
[1664645538860,1.21217744,19289.0,19288.0,0.02456673]
[1664645539791,1.21217744,19289.0,19288.0,0.07456673]
[1664645540252,1.57024344,19289.0,19288.0,0.07456673]
[1664645540704,1.21217744,19289.0,19288.0,0.07456673]
[1664645540915,1.21217744,19289.0,19288.0,0.02456673]
[1664645541159,1.57024344,19289.0,19288.0,0.02456673]
[1664645541381,1.21217744,19289.0,19288.0,0.02456673]
[1664645541847,1.21217744,19289.0,19288.0,0.07456673]
[1664645542337,1.57024344,19289.0,19288.0,0.07456673]
[1664645542596,1.21217744,19289.0,19288.0,0.07456673]
[1664645543018,1.21217744,19289.0,19288.0,0.02456673]
[1664645543470,1.57024344,19289.0,19288.0,0.02456673]
[1664645543686,1.21217744,19289.0,19288.0,0.07456673]
[1664645544842,1.21217744,19289.0,19288.0,0.02456673]
[1664645545727,1.21217744,19289.0,19288.0,0.07456673]
[1664645547572,1.21217744,19289.0,19288.0,0.02456673]
[1664645547793,1.21217744,19289.0,19288.0,0.07456673]
[1664645548018,1.57024344,19289.0,19288.0,0.07456673]
[1664645548244,1.21217744,19289.0,19288.0,0.07456673]
[1664645548948,1.57024344,19289.0,19288.0,0.02448917]
[1664645549649,1.21217744,19289.0,19288.0,0.02448917]
[1664645549881,1.57024344,19289.0,19288.0,0.07448917]
[1664645550360,1.21217744,19289.0,19288.0,0.07448917]
[1664645551042,1.21217744,19289.0,19288.0,0.02448917]
[1664645551712,1.21217744,19289.0,19288.0,0.07448917]
[1664645552874,1.21217744,19289.0,19288.0,0.02448917]
[1664645553777,1.57024344,19289.0,19288.0,0.07948917]
[1664645554013,1.21217744,19289.0,19288.0,0.07948917]
[1664645554908,1.57024344,19289.0,19288.0,0.02448917]
[1664645555124,1.21217744,19289.0,19288.0,0.02448917]
[1664645555556,1.57024344,19289.0,19288.0,0.02448917]
[1664645555781,1.57024344,19289.0,19288.0,0.07948917]
[1664645556242,1.21217744,19289.0,19288.0,0.07948917]
[1664645556471,2.95219923,19289.0,19288.0,0.07948917]
[1664645556708,2.80833131,19289.0,19288.0,0.07948917]
[1664645556935,2.95860699,19289.0,19288.0,0.07948917]
[1664645557167,2.95860699,19289.0,19288.0,0.02448917]
[1664645557659,2.84847772,19289.0,19288.0,0.07848917]
[1664645558338,2.84847751,19289.0,19288.0,0.07848917]
[1664645559027,2.29256625,19289.0,19288.0,0.02448917]
[1664645559259,1.8328395,19289.0,19288.0,0.02448917]
[1664645559712,1.79217847,19289.0,19288.0,0.07848917]
[1664645560417,2.15024447,19289.0,19288.0,0.07848917]
[1664645560642,2.1909055,19289.0,19288.0,0.07848917]
[1664645560859,2.15024447,19289.0,19288.0,0.07848917]
[1664645561077,2.45024447,19289.0,19288.0,0.02448917]
[1664645561342,2.09217847,19289.0,19288.0,0.02448917]
[1664645561808,1.63851303,19289.0,19288.0,0.13282188]
[1664645562033,1.63851303,19289.0,19288.0,0.89200092]
[1664645562034,0.39319033,19289.0,19288.0,0.89200092]
[1664645562258,0.39319033,19289.0,19288.0,0.13282188]
[1664645562918,0.39319033,19289.0,19288.0,0.07882188]
[1664645563633,0.00436833,19289.0,19288.0,0.47993492]
[1664645563913,0.00436833,19289.0,19288.0,0.89900092]
[1664645564143,0.388785,19291.0,19288.0,0.13982188]
[1664645564380,0.388785,19291.0,19290.0,0.0999078]
[1664645564603,0.520368,19292.0,19290.0,0.1162203]
[1664645564604,0.002,19292.0,19290.0,0.1162203]
[1664645564835,0.002,19292.0,19291.0,0.0999078]
[1664645565583,0.00636833,19292.0,19291.0,0.0999078]
[1664645565818,0.00636833,19292.0,19291.0,0.16389858]
[1664645566051,0.00627332,19292.0,19291.0,0.53827708]
[1664645566278,0.00627332,19292.0,19291.0,0.18021108]
[1664645566732,0.00627332,19292.0,19291.0,0.53827708]
[1664645566953,0.00627332,19292.0,19291.0,0.93939012]
[1664645567197,0.00627332,19292.0,19291.0,0.12621108]
[1664645567911,0.00627332,19292.0,19291.0,0.54745375]
[1664645568618,0.00627332,19292.0,19291.0,0.18938775]
[1664645568839,0.00627332,19292.0,19291.0,0.54745375]
[1664645569071,0.00627332,19292.0,19291.0,0.49245375]
[1664645569782,0.00627332,19292.0,19291.0,0.54145375]
[1664645570253,0.00627332,19292.0,19291.0,0.18338775]
[1664645570968,0.00627332,19292.0,19291.0,0.54145375]
[1664645571203,0.00627332,19292.0,19291.0,0.49245375]
[1664645571926,0.00627332,19292.0,19291.0,0.54145375]
[1664645573218,0.00627332,19292.0,19291.0,0.13438775]
[1664645573523,0.00627332,19292.0,19291.0,0.49245375]
[1664645574212,0.00627332,19292.0,19291.0,0.54145375]
[1664645575032,0.00627332,19292.0,19291.0,0.49245375]
[1664645575932,0.00627332,19292.0,19291.0,0.54145375]
[1664645576167,0.00627332,19292.0,19291.0,0.94256679]
[1664645577102,0.00627332,19292.0,19291.0,0.89356679]
[1664645577779,0.00627332,19292.0,19291.0,0.94156679]
[1664645578005,0.00627332,19292.0,19291.0,1.89156679]
[1664645578261,0.00627332,19292.0,19291.0,2.40329823]
[1664645579193,0.00627332,19292.0,19291.0,2.35529823]
[1664645579875,0.00627332,19292.0,19291.0,2.40329823]
[1664645580870,0.00627332,19292.0,19291.0,2.35329823]
[1664645581095,0.00627332,19292.0,19291.0,2.35529823]
[1664645581558,0.00627332,19292.0,19291.0,1.40529823]
[1664645581797,0.07130332,19292.0,19291.0,0.17239697]
[1664645582255,0.00627332,19292.0,19291.0,0.53046297]
[1664645583178,0.00627332,19292.0,19291.0,0.12439697]
[1664645583629,0.00627332,19292.0,19291.0,0.48246297]
[1664645583860,0.00627332,19292.0,19291.0,1.02293361]
[1664645585031,0.00627332,19292.0,19291.0,0.97693361]
[1664645585273,0.00627332,19292.0,19291.0,0.57582057]
[1664645585501,0.00627332,19292.0,19291.0,0.97693361]
[1664645585967,0.00627332,19292.0,19291.0,1.02293361]
[1664645586651,0.00627332,19292.0,19291.0,1.07293361]
[1664645587132,0.00627332,19292.0,19291.0,1.02693361]
[1664645587836,0.00627332,19292.0,19291.0,1.07293361]
[1664645589196,0.00627332,19292.0,19291.0,1.02693361]
[1664645589468,0.00627332,19292.0,19291.0,0.97693361]
[1664645589921,0.00627332,19292.0,19291.0,1.02493361]
[1664645590151,0.00627332,19292.0,19291.0,0.62382057]
[1664645590577,0.00627332,19292.0,19291.0,1.02493361]
[1664645590791,0.00627332,19292.0,19291.0,0.62382057]
[1664645591050,0.00627332,19292.0,19291.0,0.62582057]
[1664645591487,0.00627332,19292.0,19291.0,0.47591277]
[1664645591712,0.00627332,19292.0,19291.0,0.11784677]
[1664645591980,0.00627332,19292.0,19291.0,0.43055517]
[1664645592207,0.00627332,19292.0,19291.0,0.07248917]
[1664645592430,0.00627332,19292.0,19291.0,0.43055517]
[1664645593089,0.00627332,19292.0,19291.0,0.38255517]
[1664645594056,0.07130332,19292.0,19291.0,0.07048917]
[1664645594286,0.00627332,19292.0,19291.0,0.07048917]
[1664645594513,0.00627332,19292.0,19291.0,0.09048849]
[1664645594743,0.00627332,19292.0,19291.0,0.44855449]
[1664645595197,0.00627332,19292.0,19291.0,0.40255449]
[1664645595432,0.00627332,19292.0,19291.0,0.04448849]
[1664645595658,0.00627332,19292.0,19291.0,0.40255449]
[1664645595928,0.00627332,19292.0,19291.0,0.44855449]
[1664645597177,0.00627332,19292.0,19291.0,0.04448849]
[1664645597406,0.00627332,19292.0,19291.0,0.40255449]
[1664645597835,0.00627332,19292.0,19291.0,0.44855449]
[1664645599168,0.00627332,19292.0,19291.0,0.40255449]
[1664645599830,0.00627332,19292.0,19291.0,0.04448849]
[1664645600108,0.00627332,19292.0,19291.0,0.07048917]
[1664645600310,0.00627332,19292.0,19291.0,0.42855517]
[1664645601496,0.00627332,19292.0,19291.0,0.38255517]
[1664645601940,0.00627332,19292.0,19291.0,0.42855517]
[1664645603274,0.00627332,19292.0,19291.0,0.38255517]
[1664645603801,0.00627332,19292.0,19291.0,0.43876109]
[1664645603950,0.00627332,19292.0,19291.0,0.48476109]
[1664645605033,0.00627332,19292.0,19291.0,0.12669509]
[1664645605256,0.00627332,19292.0,19291.0,0.02448917]
[1664645605590,0.00627332,19292.0,19291.0,0.38255517]
[1664645605813,0.00627332,19292.0,19291.0,0.42855517]
[1664645606780,0.00620041,19292.0,19291.0,0.07048917]
[1664645607405,0.56964411,19292.0,19291.0,0.02448917]
[1664645607634,1.55206411,19292.0,19291.0,0.02448917]
[1664645607890,1.19399811,19292.0,19291.0,0.02448917]
[1664645608108,1.64716711,19292.0,19291.0,0.06948917]
[1664645609691,1.64716711,19292.0,19291.0,0.02448917]
[1664645609927,1.58213711,19292.0,19291.0,0.07148917]
[1664645610969,1.28213711,19292.0,19291.0,0.07148917]
[1664645611101,1.28213711,19292.0,19291.0,0.02448917]
[1664645611102,1.58213711,19292.0,19291.0,0.02448917]
[1664645611354,1.28213711,19292.0,19291.0,0.02448917]
[1664645612028,1.28213711,19292.0,19291.0,0.07148917]
[1664645613314,1.28213711,19292.0,19291.0,0.02448917]
[1664645613543,1.28213711,19292.0,19291.0,0.38255517]
[1664645613989,1.28213711,19292.0,19291.0,0.42955517]
[1664645614131,1.28213711,19292.0,19291.0,0.07148917]
[1664645614360,0.76378811,19292.0,19291.0,0.42955517]
[1664645614754,0.76378811,19292.0,19291.0,0.07148917]
[1664645615188,0.76378811,19292.0,19291.0,0.38255517]
[1664645615624,0.76378811,19292.0,19291.0,0.02448917]
[1664645616059,0.76378811,19292.0,19291.0,0.07148917]
[1664645616441,0.76378811,19292.0,19291.0,0.42955517]
[1664645617256,0.76378811,19292.0,19291.0,0.46562199]
[1664645617453,0.76378811,19292.0,19291.0,0.02448917]
[1664645617698,0.76378811,19292.0,19291.0,0.38255517]
[1664645618136,0.50461411,19292.0,19291.0,0.42955517]
[1664645618576,0.50461411,19292.0,19291.0,0.07148917]
[1664645618798,0.50461411,19292.0,19291.0,0.43670409]
[1664645619264,0.13578741,19292.0,19291.0,0.43670409]
[1664645619453,0.13578741,19292.0,19291.0,0.03163809]
[1664645619698,0.13578741,19292.0,19291.0,0.38970409]
[1664645619951,0.13578741,19292.0,19291.0,0.43870409]
[1664645620988,0.00620041,19292.0,19291.0,0.43870409]
[1664645621205,0.00620041,19292.0,19291.0,0.38970409]
[1664645621864,0.00620041,19292.0,19291.0,0.43870409]
[1664645622295,0.00620041,19292.0,19291.0,0.08063809]
[1664645622551,0.13578741,19292.0,19291.0,0.07348917]
[1664645622796,0.13578741,19292.0,19291.0,0.43155517]
[1664645623219,0.43578741,19292.0,19291.0,0.02448917]
[1664645623444,0.13578741,19292.0,19291.0,0.02448917]
[1664645623904,0.13578741,19292.0,19291.0,0.07348917]
[1664645625248,0.13578741,19292.0,19291.0,0.02448917]
[1664645626112,0.13578741,19292.0,19291.0,0.07148917]
[1664645627295,0.13078741,19292.0,19291.0,0.07148917]
[1664645627530,0.13078741,19292.0,19291.0,0.02448917]
[1664645627985,0.13078741,19292.0,19291.0,0.42955517]
[1664645628314,0.13078741,19292.0,19291.0,0.07148917]
[1664645629273,0.13078741,19292.0,19291.0,0.02448917]
[1664645629445,0.13078741,19292.0,19291.0,0.41304847]
[1664645630054,0.13078741,19292.0,19291.0,0.46004847]
[1664645630631,0.13078741,19292.0,19291.0,0.10198247]
[1664645631207,0.13078741,19292.0,19291.0,0.05498247]
[1664645631451,0.13078741,19292.0,19291.0,0.41304847]
[1664645631684,0.13078741,19292.0,19291.0,0.01899936]
[1664645631924,0.13078741,19292.0,19291.0,0.06799936]
[1664645633244,0.13078741,19292.0,19291.0,0.01899936]
[1664645633939,0.13078741,19292.0,19291.0,0.06599936]
[1664645635019,0.13078741,19292.0,19291.0,0.42406536]
[1664645635307,0.13078741,19292.0,19291.0,0.37706536]
[1664645635748,0.43078741,19292.0,19291.0,0.37706536]
[1664645635961,0.68996141,19292.0,19291.0,0.06599936]
[1664645636182,0.68996141,19292.0,19291.0,0.42406536]
[1664645636628,0.38996141,19292.0,19291.0,0.06599936]
[1664645636842,0.68996141,19292.0,19291.0,0.06599936]
[1664645637075,0.68996141,19292.0,19291.0,0.42406536]
[1664645637285,0.68996141,19292.0,19291.0,0.37706536]
[1664645637977,0.68996141,19292.0,19291.0,0.06799936]
[1664645638192,0.68996141,19292.0,19291.0,0.42606536]
[1664645638467,0.68996141,19292.0,19291.0,0.06799936]
[1664645638913,0.38996141,19292.0,19291.0,0.42606536]
[1664645639374,0.68996141,19292.0,19291.0,0.37706536]
[1664645639550,0.68996141,19292.0,19291.0,0.01899936]
[1664645639769,0.68996141,19292.0,19291.0,0.37706536]
[1664645639995,0.38996141,19292.0,19291.0,0.4897085]
[1664645640527,0.68996141,19292.0,19291.0,0.06799936]
[1664645641154,0.38996141,19292.0,19291.0,0.42606536]
[1664645641329,0.38996141,19292.0,19291.0,0.37706536]
[1664645641984,0.38996141,19292.0,19291.0,0.42606536]
[1664645642636,0.38996141,19292.0,19291.0,0.06799936]
[1664645642909,0.38996141,19292.0,19291.0,0.42606536]
[1664645643294,0.38996141,19292.0,19291.0,0.37706536]
[1664645643741,0.38996141,19292.0,19291.0,0.4937704]
[1664645643960,0.38996141,19292.0,19291.0,0.5467704]
[1664645644889,0.38996141,19292.0,19291.0,0.1887044]
[1664645645125,0.38996141,19292.0,19291.0,0.5467704]
[1664645645365,0.38996141,19292.0,19291.0,0.4937704]
[1664645645812,0.13078741,19292.0,19291.0,0.4937704]
[1664645646246,0.13078741,19292.0,19291.0,0.5467704]
[1664645647352,0.13078741,19292.0,19291.0,0.4937704]
[1664645647553,0.13078741,19292.0,19291.0,0.1357044]
[1664645647811,0.13078741,19292.0,19291.0,0.4937704]
[1664645648294,0.00120041,19292.0,19291.0,0.94788344]
[1664645648737,0.00120041,19292.0,19291.0,0.1887044]
[1664645648967,0.00120041,19292.0,19291.0,0.5467704]
[1664645649445,0.00120041,19292.0,19291.0,0.4937704]
[1664645650136,0.00120041,19292.0,19291.0,0.5467704]
[1664645652937,0.00061231,19292.0,19291.0,0.5467704]
[1664645653410,0.13019931,19292.0,19291.0,0.1357044]
[1664645653632,0.13019931,19292.0,19291.0,0.37706536]
[1664645654122,0.13019931,19292.0,19291.0,0.43006536]
[1664645655539,0.13019931,19292.0,19291.0,0.37706536]
[1664645656197,0.13019931,19292.0,19291.0,0.43006536]
[1664645657616,0.13019931,19292.0,19291.0,0.37706536]
[1664645657843,0.13019931,19292.0,19291.0,0.4937704]
[1664645658325,0.13019931,19292.0,19291.0,0.1887044]
[1664645658761,0.13019931,19292.0,19291.0,0.5467704]
[1664645659215,0.13019931,19292.0,19291.0,0.1887044]
[1664645659436,0.74743931,19292.0,19291.0,0.01899936]
[1664645659655,0.68937331,19292.0,19291.0,0.01899936]
[1664645659875,0.38937331,19292.0,19291.0,0.01899936]
[1664645660243,0.38937331,19292.0,19291.0,0.07199936]
[1664645661470,0.38937331,19292.0,19291.0,0.01899936]
[1664645661926,0.38937331,19292.0,19291.0,0.37706536]
[1664645662139,0.38937331,19292.0,19291.0,0.43006536]
[1664645662309,0.68937331,19292.0,19291.0,0.43006536]
[1664645662672,0.38937331,19292.0,19291.0,0.07199936]
[1664645662791,0.38937331,19292.0,19291.0,0.43006536]
[1664645663026,0.38937331,19292.0,19291.0,0.5119591]
[1664645663250,0.38937331,19292.0,19291.0,0.4589591]
[1664645663493,0.38937331,19292.0,19291.0,0.1008931]
[1664645663693,0.00061231,19292.0,19291.0,0.50200614]
[1664645663917,0.00061231,19292.0,19291.0,0.86007214]
[1664645664155,0.00061231,19292.0,19291.0,0.91307214]
[1664645664385,0.00061231,19292.0,19291.0,1.52480358]
[1664645664643,0.00061231,19292.0,19291.0,1.7340262]
[1664645664874,0.00061231,19292.0,19291.0,1.8636202]
[1664645665328,0.00061231,19292.0,19291.0,1.8106202]
[1664645666035,0.00061231,19292.0,19291.0,1.8686202]
[1664645666504,0.00061231,19292.0,19291.0,1.9186202]
[1664645666736,0.00061231,19292.0,19291.0,1.8686202]
[1664645666960,0.00061231,19292.0,19291.0,1.9186202]
[1664645667399,0.00061231,19292.0,19291.0,1.8106202]
[1664645667628,0.00061231,19292.0,19291.0,1.7606202]
[1664645667852,0.00061231,19292.0,19291.0,1.4025542]
[1664645668075,0.00061231,19292.0,19291.0,1.8686202]
[1664645668797,0.00061231,19292.0,19291.0,1.8186202]
[1664645669457,0.00061231,19292.0,19291.0,1.8106202]
[1664645669693,0.00061231,19292.0,19291.0,1.7606202]
[1664645670143,0.00061231,19292.0,19291.0,1.8186202]
[1664645670610,0.00061231,19292.0,19291.0,1.28791316]
[1664645670830,0.00061231,19292.0,19291.0,1.6890262]
[1664645671287,0.00061231,19292.0,19291.0,1.6310262]
[1664645671749,0.00061231,19292.0,19291.0,0.97069054]
[1664645671999,0.00061231,19292.0,19291.0,0.61262454]
[1664645672251,0.00061231,19292.0,19291.0,1.02869054]
[1664645672891,0.00061231,19292.0,19291.0,0.67062454]
[1664645673133,0.24851931,19292.0,19291.0,0.07699936]
[1664645673437,0.50769331,19292.0,19291.0,0.07699936]
[1664645673661,0.50769331,19292.0,19291.0,0.01899936]
[1664645673662,0.44847331,19292.0,19291.0,0.01899936]
[1664645673880,0.74847331,19292.0,19291.0,0.01899936]
[1664645674106,0.44847331,19292.0,19291.0,0.01899936]
[1664645674334,0.74847331,19292.0,19291.0,0.07699936]
[1664645675231,0.38937331,19292.0,19291.0,0.43506536]
[1664645675459,0.38937331,19292.0,19291.0,0.37706536]
[1664645675681,0.38937331,19292.0,19291.0,0.27899936]
[1664645676137,0.38937331,19292.0,19291.0,0.63706536]
[1664645676372,0.38937331,19292.0,19291.0,0.32799936]
[1664645676614,0.38937331,19292.0,19291.0,0.68606536]
[1664645676845,0.38937331,19292.0,19291.0,0.32799936]
[1664645677073,0.68937331,19292.0,19291.0,0.32799936]
[1664645677541,1.20772231,19292.0,19291.0,0.27899936]
[1664645678009,1.20772231,19292.0,19291.0,0.63706536]
[1664645678253,1.20772231,19292.0,19291.0,0.68606536]
[1664645678493,0.90772231,19292.0,19291.0,0.68606536]
[1664645678711,0.90772231,19292.0,19291.0,0.32799936]
[1664645679160,1.20772231,19292.0,19291.0,0.32799936]
[1664645679621,1.20772231,19292.0,19291.0,0.27899936]
[1664645680380,1.20772231,19292.0,19291.0,0.32799936]
[1664645681094,0.90772231,19292.0,19291.0,0.68606536]
[1664645681296,0.90772231,19292.0,19291.0,0.32799936]
[1664645681447,0.90772231,19292.0,19291.0,0.27899936]
[1664645681890,0.38937331,19292.0,19291.0,1.0381784]
[1664645682077,0.38937331,19292.0,19291.0,0.63706536]
[1664645682287,0.38937331,19292.0,19291.0,0.32799936]
[1664645683434,0.38937331,19292.0,19291.0,0.27899936]
[1664645684153,0.38937331,19292.0,19291.0,0.33199936]
[1664645685699,0.38937331,19292.0,19291.0,0.63706536]
[1664645685911,0.38937331,19292.0,19291.0,1.0381784]
[1664645686158,0.38937331,19292.0,19291.0,0.63706536]
[1664645686382,0.38937331,19292.0,19291.0,0.33199936]
[1664645686807,0.38937331,19292.0,19291.0,0.69006536]
[1664645687007,0.38937331,19292.0,19291.0,0.33199936]
[1664645687358,0.38937331,19292.0,19291.0,0.27899936]
[1664645688418,0.38937331,19292.0,19291.0,0.33199936]
[1664645689028,0.38937331,19292.0,19291.0,0.69006536]
[1664645689254,0.38937331,19292.0,19291.0,0.33199936]
[1664645689474,0.38937331,19292.0,19291.0,0.27899936]
[1664645690132,0.38937331,19292.0,19291.0,0.63706536]
[1664645690350,0.38937331,19292.0,19291.0,0.33199936]
[1664645691002,0.38937331,19292.0,19291.0,0.69006536]
[1664645691230,0.13019931,19292.0,19291.0,1.23918354]
[1664645691457,0.00061231,19292.0,19291.0,1.23918354]
[1664645691679,0.00061231,19292.0,19291.0,1.18618354]
[1664645692345,0.00061231,19292.0,19291.0,0.8380705]
[1664645692606,0.00061231,19292.0,19291.0,1.23918354]
[1664645693055,0.00061231,19292.0,19291.0,1.33918354]
[1664645693497,0.00061231,19292.0,19291.0,1.28618354]
[1664645693716,0.00061231,19292.0,19291.0,1.18618354]
[1664645694169,0.00061231,19292.0,19291.0,1.24418354]
[1664645694827,0.13019931,19292.0,19291.0,1.24418354]
[1664645695481,0.13019931,19292.0,19291.0,1.18618354]
[1664645696168,0.13019931,19292.0,19291.0,0.7850705]
[1664645696413,0.13019931,19292.0,19291.0,1.24418354]
[1664645696637,0.13019931,19292.0,19291.0,0.8430705]
[1664645696847,0.13019931,19292.0,19291.0,1.24418354]
[1664645697115,0.13019931,19292.0,19291.0,0.8430705]
[1664645697540,0.13019931,19292.0,19291.0,0.63706536]
[1664645697752,0.13019931,19292.0,19291.0,0.27899936]
[1664645697753,0.38937331,19292.0,19291.0,0.27899936]
[1664645698379,0.38937331,19292.0,19291.0,0.33199936]
[1664645699031,0.68937331,19292.0,19291.0,0.69006536]
[1664645699260,0.68937331,19292.0,19291.0,0.33199936]
[1664645699746,0.68937331,19292.0,19291.0,0.27899936]
[1664645700446,0.68937331,19292.0,19291.0,0.32799936]
[1664645701576,0.68937331,19292.0,19291.0,0.27899936]
[1664645702507,0.70096706,19292.0,19291.0,0.32799936]
[1664645703661,0.70096706,19292.0,19291.0,0.27899936]
[1664645704442,1.18811376,19292.0,19291.0,0.32793697]
[1664645704662,1.48695976,19292.0,19291.0,0.32793697]
[1664645705118,1.64724276,19292.0,19291.0,0.32793697]
[1664645705371,1.86389944,19292.0,19291.0,0.32793697]
[1664645705591,1.86389944,19292.0,19291.0,0.27893697]
[1664645706492,1.86389944,19292.0,19291.0,0.32593697]
[1664645707621,1.58814276,19292.0,19291.0,0.27893697]
[1664645707880,1.58814276,19292.0,19291.0,0.63700297]
[1664645708088,1.64724276,19292.0,19291.0,0.27893697]
[1664645708319,1.58814276,19292.0,19291.0,0.27893697]
[1664645708552,0.76979376,19292.0,19291.0,0.32793697]
[1664645708781,0.76979376,19292.0,19291.0,0.68600297]
[1664645709236,0.76979376,19292.0,19291.0,0.78480119]
[1664645709689,0.76979376,19292.0,19291.0,0.73580119]
[1664645709911,0.76979376,19292.0,19291.0,0.49020261]
[1664645710062,0.76979376,19292.0,19291.0,0.37773519]
[1664645710289,0.76979376,19292.0,19291.0,0.43073519]
[1664645710537,0.76979376,19292.0,19291.0,0.78880119]
[1664645710759,0.76979376,19292.0,19291.0,0.43073519]
[1664645711605,0.76979376,19292.0,19291.0,0.37773519]
[1664645712497,0.76979376,19292.0,19291.0,0.42673519]
[1664645713660,0.76979376,19292.0,19291.0,0.37773519]
[1664645714124,1.24783376,19292.0,19291.0,0.37773519]
[1664645714375,1.46466084,19292.0,19291.0,0.37773519]
[1664645714635,1.46466084,19292.0,19291.0,0.42673519]
[1664645714896,2.34107584,19292.0,19291.0,0.42673519]
[1664645715123,1.98300984,19292.0,19291.0,0.42673519]
[1664645715850,1.98300984,19292.0,19291.0,0.37773519]
[1664645716313,1.64724276,19292.0,19291.0,0.37773519]
[1664645716541,1.58814276,19292.0,19291.0,0.42473519]
[1664645717445,1.64724276,19292.0,19291.0,0.42473519]
[1664645717665,1.64724276,19292.0,19291.0,0.37773519]
[1664645718398,1.64724276,19292.0,19291.0,0.42473519]
[1664645719757,1.58814276,19292.0,19291.0,0.37773519]
[1664645720435,1.58814276,19292.0,19291.0,0.42673519]
[1664645721817,1.97692944,19292.0,19291.0,0.37773519]
[1664645722071,2.55323081,19292.0,19291.0,0.37773519]
[1664645722293,2.19516481,19292.0,19291.0,0.37773519]
[1664645722548,2.19516481,19292.0,19291.0,0.42773519]
[1664645723924,2.19516481,19292.0,19291.0,0.37773519]
[1664645724649,2.19516481,19292.0,19291.0,0.42973519]
[1664645725749,2.19516481,19292.0,19291.0,0.37773519]
[1664645726477,2.19516481,19292.0,19291.0,0.42973519]
[1664645726932,2.59627785,19292.0,19291.0,0.42973519]
[1664645727192,2.59627785,19292.0,19291.0,0.42964201]
[1664645727423,3.10800929,19292.0,19291.0,0.42964201]
[1664645727648,3.58769883,19292.0,19291.0,0.37764201]
[1664645728122,3.14867032,19292.0,19291.0,0.37764201]
[1664645728345,3.46607529,19292.0,19291.0,0.37764201]
[1664645728570,3.46607529,19292.0,19291.0,0.42664201]
[1664645729011,3.50673632,19292.0,19291.0,0.42664201]
[1664645729725,3.56773053,19292.0,19291.0,0.37764201]
[1664645729951,3.50673632,19292.0,19291.0,0.37764201]
[1664645730197,3.56773053,19292.0,19291.0,0.37764201]
[1664645730669,3.8069376,19292.0,19291.0,0.42164201]
[1664645731107,3.76401628,19292.0,19291.0,0.42164201]
[1664645731374,3.84530295,19292.0,19291.0,0.42164201]
[1664645731816,3.76401628,19292.0,19291.0,0.37764201]
[1664645732054,3.84530305,19292.0,19291.0,0.37764201]
[1664645732266,3.84916206,19292.0,19291.0,0.37764201]
[1664645732390,3.76787529,19292.0,19291.0,0.41964201]
[1664645733289,3.731586,19292.0,19291.0,0.41964201]
[1664645733723,3.89909305,19292.0,19291.0,0.37764201]
[1664645734518,3.89909305,19292.0,19291.0,0.42164201]
[1664645734960,3.89409305,19292.0,19291.0,0.42164201]
[1664645735841,3.89409305,19292.0,19291.0,0.37764201]
[1664645736058,3.85551913,19292.0,19291.0,0.37764201]
[1664645736272,3.77869293,19292.0,19291.0,0.37764201]
[1664645736513,3.90567475,19292.0,19291.0,0.42164201]
[1664645736715,3.77771562,19292.0,19291.0,0.42164201]
[1664645736932,3.2790099,19292.0,19291.0,0.42164201]
[1664645737156,3.64645243,19292.0,19291.0,0.42164201]
[1664645737655,3.23551641,19292.0,19291.0,0.42164201]
[1664645737890,3.23551641,19292.0,19291.0,0.37764201]
[1664645737891,2.99976973,19292.0,19291.0,0.37764201]
[1664645738115,2.59865669,19292.0,19291.0,0.37764201]
[1664645738346,2.12165069,19292.0,19291.0,0.37764201]
[1664645738583,2.39868182,19292.0,19291.0,0.42464201]
[1664645740002,2.39868182,19292.0,19291.0,0.37764201]
[1664645740236,2.69868182,19292.0,19291.0,0.37764201]
[1664645740683,2.69868182,19292.0,19291.0,0.43164201]
[1664645741843,2.69868182,19292.0,19291.0,0.37764201]
[1664645742433,2.69868182,19292.0,19291.0,0.43164201]
[1664645742905,3.09979486,19292.0,19291.0,0.43164201]
[1664645743126,2.69868182,19292.0,19291.0,0.43164201]
[1664645743336,2.67368182,19292.0,19291.0,0.43164201]
[1664645743798,2.67368182,19292.0,19291.0,0.37764201]
[1664645744486,2.67368182,19292.0,19291.0,0.43164201]
[1664645745173,3.07479486,19292.0,19291.0,0.43164201]
[1664645745385,3.45121838,19292.0,19291.0,0.43164201]
[1664645746059,3.45121838,19292.0,19291.0,0.37764201]
[1664645746530,3.49184169,19292.0,19291.0,0.43164201]
[1664645747739,3.57288912,19292.0,19291.0,0.43164201]
[1664645747954,3.62288912,19292.0,19291.0,0.37764201]
[1664645748627,4.01481278,19292.0,19291.0,0.42264201]
[1664645748917,4.06481278,19292.0,19291.0,0.42264201]
[1664645749125,3.98368221,19292.0,19291.0,0.42264201]
[1664645749379,4.03368221,19292.0,19291.0,0.42264201]
[1664645749815,4.03368221,19292.0,19291.0,0.37764201]
[1664645750033,4.15330675,19292.0,19291.0,0.37764201]
[1664645750529,3.97274619,19292.0,19291.0,0.37764201]
[1664645750747,3.97274619,19292.0,19291.0,0.41564201]
[1664645750748,4.16069835,19292.0,19291.0,0.41564201]
[1664645751342,4.04108689,19292.0,19291.0,0.41564201]
[1664645751550,3.98014619,19292.0,19291.0,0.41564201]
[1664645751976,3.98014619,19292.0,19291.0,0.37764201]
[1664645752154,4.04108672,19292.0,19291.0,0.37764201]
[1664645752368,3.98014619,19292.0,19291.0,0.37764201]
[1664645752716,3.98014619,19292.0,19291.0,0.41564201]
[1664645752896,4.04108689,19292.0,19291.0,0.41564201]
[1664645753143,4.0512054,19292.0,19291.0,0.41564201]
[1664645753629,4.09189294,19292.0,19291.0,0.41564201]
[1664645753852,3.9902647,19292.0,19291.0,0.37764201]
[1664645754124,4.05120553,19292.0,19291.0,0.37764201]
[1664645754342,3.66415159,19292.0,19291.0,0.37764201]
[1664645754581,4.02221759,19292.0,19291.0,0.37764201]
[1664645754792,3.9409544,19292.0,19291.0,0.42064201]
[1664645755469,3.98158017,19292.0,19291.0,0.42064201]
[1664645755700,3.93158017,19292.0,19291.0,0.42064201]
[1664645755944,3.93158017,19292.0,19291.0,0.37764201]
[1664645756779,3.93158017,19292.0,19291.0,0.42464201]
[1664645757932,3.93158017,19292.0,19291.0,0.37764201]
[1664645758588,3.93158017,19292.0,19291.0,0.42464201]
[1664645759696,3.97221759,19292.0,19291.0,0.42464201]
[1664645759930,3.8909544,19292.0,19291.0,0.37764201]